[Event "Titled Tuesday Blitz July 25 Early 2023"]
[White "Ganiev, Roman"]
[Black "Shimanov, Aleksandr"]
[WhiteFideId "4131452"]
[BlackFideId "4198603"]
[WhiteElo "2625"]
[BlackElo "3011"]
[Result "0-1"]
[Round "2"]
[TimeControl "180+2"]
[Date "2023.07.25"]
[WhiteClock "0:00:03"]
[BlackClock "0:00:08"]
[Board "10"]

1. e4 {[%clk 0:03:00]}  e6 {[%clk 0:02:58]} 2. d4 {[%clk 0:03:00]}  d5 {[%clk 0:02:58]} 3. Nc3 {[%clk 0:03:00]}  Bb4 {[%clk 0:02:59]} 4. e5 {[%clk 0:02:58]}  c5 {[%clk 0:02:59]} 5. a3 {[%clk 0:02:58]}  Ba5 {[%clk 0:02:59]} 6. b4 {[%clk 0:02:43]}  cxd4 {[%clk 0:02:59]} 7. Nb5 {[%clk 0:02:42]}  Bc7 {[%clk 0:02:58]} 8. Nf3 {[%clk 0:02:39]}  Nc6 {[%clk 0:02:52]} 9. Bf4 {[%clk 0:02:36]}  Nge7 {[%clk 0:02:50]} 10. h4 {[%clk 0:02:32]}  Ng6 {[%clk 0:02:44]} 11. Nxc7+ {[%clk 0:02:32]}  Qxc7 {[%clk 0:02:44]} 12. Bg3 {[%clk 0:02:31]}  Ngxe5 {[%clk 0:02:39]} 13. Nxe5 {[%clk 0:02:27]}  Nxe5 {[%clk 0:02:39]} 14. Bb5+ {[%clk 0:02:28]}  Ke7 {[%clk 0:02:17]} 15. Qxd4 {[%clk 0:02:24]}  f6 {[%clk 0:02:17]} 16. O-O {[%clk 0:02:20]}  Qb6 {[%clk 0:02:15]} 17. Bxe5 {[%clk 0:02:11]}  Qxb5 {[%clk 0:02:15]} 18. Bg3 {[%clk 0:02:08]}  Kf7 {[%clk 0:02:03]} 19. h5 {[%clk 0:02:06]}  e5 {[%clk 0:01:48]} 20. Qd2 {[%clk 0:01:52]}  Bf5 {[%clk 0:01:36]} 21. h6 {[%clk 0:01:51]}  g6 {[%clk 0:01:22]} 22. f4 {[%clk 0:01:14]}  e4 {[%clk 0:01:22]} 23. Qd4 {[%clk 0:01:15]}  Rhe8 {[%clk 0:01:05]} 24. Bf2 {[%clk 0:01:09]}  b6 {[%clk 0:00:57]} 25. Rad1 {[%clk 0:01:04]}  Rad8 {[%clk 0:00:53]} 26. Be3 {[%clk 0:01:03]}  Qc4 {[%clk 0:00:48]} 27. Qxc4 {[%clk 0:00:54]}  dxc4 {[%clk 0:00:49]} 28. Rd4 {[%clk 0:00:54]}  Rxd4 {[%clk 0:00:49]} 29. Bxd4 {[%clk 0:00:55]}  e3 {[%clk 0:00:49]} 30. Re1 {[%clk 0:00:54]}  e2 {[%clk 0:00:47]} 31. c3 {[%clk 0:00:54]}  Bd3 {[%clk 0:00:45]} 32. Kf2 {[%clk 0:00:54]}  g5 {[%clk 0:00:42]} 33. g3 {[%clk 0:00:49]}  Kg6 {[%clk 0:00:40]} 34. Kf3 {[%clk 0:00:46]}  Re6 {[%clk 0:00:37]} 35. g4 {[%clk 0:00:27]}  gxf4 {[%clk 0:00:32]} 36. Kxf4 {[%clk 0:00:28]}  Kxh6 {[%clk 0:00:30]} 37. Kf3 {[%clk 0:00:17]}  Kg6 {[%clk 0:00:29]} 38. Kg3 {[%clk 0:00:17]}  f5 {[%clk 0:00:25]} 39. gxf5+ {[%clk 0:00:17]}  Kxf5 {[%clk 0:00:26]} 40. Bf2 {[%clk 0:00:16]}  Rg6+ {[%clk 0:00:21]} 41. Kf3 {[%clk 0:00:15]}  h5 {[%clk 0:00:20]} 42. Ke3 {[%clk 0:00:13]}  Re6+ {[%clk 0:00:17]} 43. Kd2 {[%clk 0:00:12]}  Kg4 {[%clk 0:00:15]} 44. Rg1+ {[%clk 0:00:12]}  Kf5 {[%clk 0:00:09]} 45. Rh1 {[%clk 0:00:12]}  Rh6 {[%clk 0:00:07]} 46. Be3 {[%clk 0:00:13]}  Rh7 {[%clk 0:00:07]} 47. Rh2 {[%clk 0:00:12]}  h4 {[%clk 0:00:07]} 48. Bf2 {[%clk 0:00:11]}  h3 {[%clk 0:00:08]} 49. Be1 {[%clk 0:00:10]}  Kg4 {[%clk 0:00:08]} 50. Bf2 {[%clk 0:00:07]}  Rf7 {[%clk 0:00:08]} 51. Be1 {[%clk 0:00:06]}  Rf1 {[%clk 0:00:08]} 52. a4 {[%clk 0:00:03]}  a6 {[%clk 0:00:08]} 53. a5 {[%clk 0:00:03]}  b5 {[%clk 0:00:08]} 0-1


[Site "https://www.chess.com"]

[Event "Titled Tuesday Blitz July 25 Early 2023"]
[White "Pranav, V"]
[Black "Lenaerts, Lennert"]
[WhiteFideId "25060783"]
[BlackFideId "211435"]
[WhiteElo "3004"]
[BlackElo "2618"]
[Result "1-0"]
[Round "2"]
[TimeControl "180+2"]
[Date "2023.07.25"]
[WhiteClock "0:01:07"]
[BlackClock "0:01:20"]
[Board "13"]

1. e4 {[%clk 0:03:00]}  e5 {[%clk 0:03:00]} 2. Nf3 {[%clk 0:03:01]}  Nc6 {[%clk 0:03:00]} 3. Bb5 {[%clk 0:03:01]}  a6 {[%clk 0:03:01]} 4. Ba4 {[%clk 0:03:01]}  Nf6 {[%clk 0:03:01]} 5. O-O {[%clk 0:03:01]}  Be7 {[%clk 0:03:01]} 6. Re1 {[%clk 0:03:01]}  b5 {[%clk 0:03:02]} 7. Bb3 {[%clk 0:03:02]}  O-O {[%clk 0:03:03]} 8. h3 {[%clk 0:03:02]}  Bb7 {[%clk 0:03:03]} 9. d3 {[%clk 0:03:02]}  d5 {[%clk 0:03:03]} 10. Nbd2 {[%clk 0:03:01]}  dxe4 {[%clk 0:02:48]} 11. dxe4 {[%clk 0:03:01]}  Qd7 {[%clk 0:02:38]} 12. c3 {[%clk 0:02:52]}  Rad8 {[%clk 0:02:38]} 13. Bc2 {[%clk 0:02:51]}  Rfe8 {[%clk 0:02:32]} 14. Qe2 {[%clk 0:02:51]}  Bc5 {[%clk 0:02:27]} 15. Nb3 {[%clk 0:02:50]}  Bb6 {[%clk 0:02:27]} 16. Bg5 {[%clk 0:02:49]}  Qe6 {[%clk 0:02:27]} 17. Rad1 {[%clk 0:02:43]}  h6 {[%clk 0:02:26]} 18. Be3 {[%clk 0:02:42]}  Bxe3 {[%clk 0:01:59]} 19. Qxe3 {[%clk 0:02:43]}  Rxd1 {[%clk 0:02:00]} 20. Rxd1 {[%clk 0:02:40]}  Bc8 {[%clk 0:01:56]} 21. a3 {[%clk 0:02:33]}  Qe7 {[%clk 0:01:56]} 22. Nc5 {[%clk 0:02:31]}  Rd8 {[%clk 0:01:55]} 23. Re1 {[%clk 0:02:22]}  Nd4 {[%clk 0:01:50]} 24. cxd4 {[%clk 0:01:57]}  exd4 {[%clk 0:01:50]} 25. Qd3 {[%clk 0:01:49]}  Qxc5 {[%clk 0:01:50]} 26. e5 {[%clk 0:01:49]}  Nd5 {[%clk 0:01:50]} 27. Qh7+ {[%clk 0:01:49]}  Kf8 {[%clk 0:01:51]} 28. Be4 {[%clk 0:01:49]}  Nf4 {[%clk 0:01:33]} 29. Qh8+ {[%clk 0:01:46]}  Ke7 {[%clk 0:01:33]} 30. Qxg7 {[%clk 0:01:47]}  Qb6 {[%clk 0:01:31]} 31. e6 {[%clk 0:01:23]}  Bxe6 {[%clk 0:01:30]} 32. Qxh6 {[%clk 0:01:21]}  Qd6 {[%clk 0:01:20]} 33. Qg5+ {[%clk 0:01:09]}  Kd7 {[%clk 0:01:20]} 34. Ne5+ {[%clk 0:01:07]}  Kc8 {[%clk 0:01:20]} 35. Qxf4 {[%clk 0:01:07]} 1-0


[Site "https://www.chess.com"]

[Event "Titled Tuesday Blitz July 25 Early 2023"]
[White "Arat, Ufuk Sezen"]
[Black "Kramnik, Vladimir"]
[WhiteFideId "6309089"]
[BlackFideId "4101588"]
[WhiteElo "2616"]
[BlackElo "2988"]
[Result "1/2-1/2"]
[Round "2"]
[TimeControl "180+2"]
[Date "2023.07.25"]
[WhiteClock "0:00:11"]
[BlackClock "0:00:05"]
[Board "15"]

1. e4 {[%clk 0:03:00]}  c5 {[%clk 0:02:59]} 2. Nf3 {[%clk 0:03:01]}  e6 {[%clk 0:02:59]} 3. d4 {[%clk 0:03:00]}  cxd4 {[%clk 0:03:00]} 4. Nxd4 {[%clk 0:03:01]}  Nf6 {[%clk 0:02:59]} 5. Nc3 {[%clk 0:03:02]}  Nc6 {[%clk 0:03:00]} 6. Ndb5 {[%clk 0:03:01]}  d6 {[%clk 0:03:00]} 7. Bf4 {[%clk 0:03:00]}  e5 {[%clk 0:03:01]} 8. Bg5 {[%clk 0:03:00]}  a6 {[%clk 0:03:01]} 9. Na3 {[%clk 0:03:01]}  b5 {[%clk 0:03:02]} 10. Nd5 {[%clk 0:03:02]}  Be7 {[%clk 0:03:02]} 11. Bxf6 {[%clk 0:03:02]}  Bxf6 {[%clk 0:03:02]} 12. c3 {[%clk 0:03:03]}  Rb8 {[%clk 0:03:02]} 13. Nc2 {[%clk 0:03:03]}  Bg5 {[%clk 0:03:03]} 14. a4 {[%clk 0:03:02]}  bxa4 {[%clk 0:03:03]} 15. Ncb4 {[%clk 0:02:53]}  Nxb4 {[%clk 0:03:03]} 16. Nxb4 {[%clk 0:02:54]}  Bd7 {[%clk 0:02:57]} 17. Qxd6 {[%clk 0:02:43]}  Be7 {[%clk 0:02:43]} 18. Qxe5 {[%clk 0:02:43]}  O-O {[%clk 0:02:43]} 19. Nd5 {[%clk 0:02:37]}  Re8 {[%clk 0:02:29]} 20. Nxe7+ {[%clk 0:02:35]}  Rxe7 {[%clk 0:02:27]} 21. Qd4 {[%clk 0:02:35]}  Rxb2 {[%clk 0:02:00]} 22. Bxa6 {[%clk 0:02:28]}  Qb6 {[%clk 0:01:20]} 23. Qxb6 {[%clk 0:02:25]}  Rxb6 {[%clk 0:01:18]} 24. Bd3 {[%clk 0:02:25]}  Rb2 {[%clk 0:00:47]} 25. O-O {[%clk 0:02:23]}  Be8 {[%clk 0:00:45]} 26. Rfb1 {[%clk 0:02:20]}  Reb7 {[%clk 0:00:45]} 27. Kf1 {[%clk 0:02:15]}  Kf8 {[%clk 0:00:36]} 28. Ke1 {[%clk 0:02:15]}  Ke7 {[%clk 0:00:36]} 29. Kd1 {[%clk 0:02:11]}  Bc6 {[%clk 0:00:28]} 30. Rxb2 {[%clk 0:01:59]}  Rxb2 {[%clk 0:00:27]} 31. Bc2 {[%clk 0:01:59]}  Kd6 {[%clk 0:00:20]} 32. Kc1 {[%clk 0:01:59]}  Rb8 {[%clk 0:00:19]} 33. Ra2 {[%clk 0:01:54]}  Ra8 {[%clk 0:00:20]} 34. Kb2 {[%clk 0:01:46]}  Kc5 {[%clk 0:00:20]} 35. Ka3 {[%clk 0:01:42]}  g5 {[%clk 0:00:20]} 36. Rb2 {[%clk 0:01:41]}  Rd8 {[%clk 0:00:16]} 37. Bxa4 {[%clk 0:01:37]}  Bxa4 {[%clk 0:00:16]} 38. Kxa4 {[%clk 0:01:37]}  Kc4 {[%clk 0:00:17]} 39. Rb4+ {[%clk 0:01:27]}  Kxc3 {[%clk 0:00:17]} 40. Rb7 {[%clk 0:01:28]}  f6 {[%clk 0:00:17]} 41. Rf7 {[%clk 0:01:23]}  Rd6 {[%clk 0:00:14]} 42. Rxh7 {[%clk 0:01:15]}  Rd4+ {[%clk 0:00:14]} 43. Kb5 {[%clk 0:01:10]}  Rxe4 {[%clk 0:00:14]} 44. Rh3+ {[%clk 0:01:04]}  Kd2 {[%clk 0:00:13]} 45. Rf3 {[%clk 0:01:04]}  Re5+ {[%clk 0:00:11]} 46. Kc6 {[%clk 0:01:01]}  f5 {[%clk 0:00:11]} 47. Kd6 {[%clk 0:01:01]}  Ra5 {[%clk 0:00:11]} 48. Ke6 {[%clk 0:01:02]}  f4 {[%clk 0:00:10]} 49. Kf6 {[%clk 0:00:46]}  Ke2 {[%clk 0:00:10]} 50. h4 {[%clk 0:00:47]}  gxh4 {[%clk 0:00:06]} 51. Rxf4 {[%clk 0:00:47]}  Rh5 {[%clk 0:00:06]} 52. Kg6 {[%clk 0:00:41]}  h3 {[%clk 0:00:06]} 53. Kxh5 {[%clk 0:00:09]}  hxg2 {[%clk 0:00:05]} 54. Rg4 {[%clk 0:00:10]}  Kxf2 {[%clk 0:00:05]} 55. Rxg2+ {[%clk 0:00:11]}  Kxg2 {[%clk 0:00:05]} 1/2-1/2


[Site "https://www.chess.com"]

[Event "Titled Tuesday Blitz July 25 Early 2023"]
[White "NicolaiMaxime"]
[Black "Martinez Alcantara, Jose Eduardo"]
[BlackFideId "3805662"]
[WhiteElo "2609"]
[BlackElo "2982"]
[Result "0-1"]
[Round "2"]
[TimeControl "180+2"]
[Date "2023.07.25"]
[WhiteClock "0:00:04"]
[BlackClock "0:00:41"]
[Board "16"]

1. c4 {[%clk 0:02:59]}  c5 {[%clk 0:02:59]} 2. Nc3 {[%clk 0:02:59]}  Nf6 {[%clk 0:03:00]} 3. g3 {[%clk 0:02:59]}  g6 {[%clk 0:02:58]} 4. Bg2 {[%clk 0:02:59]}  Bg7 {[%clk 0:02:59]} 5. d3 {[%clk 0:02:59]}  O-O {[%clk 0:03:00]} 6. Nf3 {[%clk 0:02:59]}  d5 {[%clk 0:03:00]} 7. cxd5 {[%clk 0:02:59]}  Nxd5 {[%clk 0:03:00]} 8. Bd2 {[%clk 0:02:59]}  Nc7 {[%clk 0:02:51]} 9. O-O {[%clk 0:02:58]}  Nc6 {[%clk 0:02:51]} 10. Rc1 {[%clk 0:02:58]}  b6 {[%clk 0:02:48]} 11. a3 {[%clk 0:02:54]}  Bd7 {[%clk 0:02:47]} 12. h4 {[%clk 0:02:36]}  h6 {[%clk 0:02:40]} 13. Bf4 {[%clk 0:02:25]}  e5 {[%clk 0:02:37]} 14. Be3 {[%clk 0:02:25]}  Rc8 {[%clk 0:02:22]} 15. Qd2 {[%clk 0:02:25]}  Nd4 {[%clk 0:02:20]} 16. Bxd4 {[%clk 0:02:15]}  exd4 {[%clk 0:02:21]} 17. Nb1 {[%clk 0:02:00]}  Qe7 {[%clk 0:02:08]} 18. Rfe1 {[%clk 0:01:53]}  a5 {[%clk 0:02:03]} 19. Qc2 {[%clk 0:01:51]}  Nd5 {[%clk 0:01:41]} 20. Nfd2 {[%clk 0:01:44]}  Be6 {[%clk 0:01:41]} 21. Nc4 {[%clk 0:01:38]}  Rb8 {[%clk 0:01:41]} 22. Nbd2 {[%clk 0:01:34]}  Rfd8 {[%clk 0:01:41]} 23. a4 {[%clk 0:01:32]}  Nb4 {[%clk 0:01:41]} 24. Qb1 {[%clk 0:01:32]}  Bd7 {[%clk 0:01:39]} 25. b3 {[%clk 0:01:32]}  Be6 {[%clk 0:01:40]} 26. Na3 {[%clk 0:01:24]}  Nd5 {[%clk 0:01:39]} 27. Nb5 {[%clk 0:01:22]}  h5 {[%clk 0:01:37]} 28. Nc4 {[%clk 0:01:20]}  Bh6 {[%clk 0:01:35]} 29. Rc2 {[%clk 0:01:17]}  Kg7 {[%clk 0:01:33]} 30. Ne5 {[%clk 0:01:09]}  Rbc8 {[%clk 0:01:27]} 31. Nc4 {[%clk 0:01:02]}  Rb8 {[%clk 0:01:27]} 32. Ne5 {[%clk 0:01:02]}  Nb4 {[%clk 0:01:24]} 33. Nc6 {[%clk 0:00:57]}  Nxc6 {[%clk 0:01:23]} 34. Bxc6 {[%clk 0:00:58]}  g5 {[%clk 0:01:24]} 35. hxg5 {[%clk 0:00:56]}  Bxg5 {[%clk 0:01:25]} 36. Bg2 {[%clk 0:00:48]}  h4 {[%clk 0:01:25]} 37. e3 {[%clk 0:00:34]}  dxe3 {[%clk 0:01:23]} 38. fxe3 {[%clk 0:00:34]}  hxg3 {[%clk 0:01:23]} 39. d4 {[%clk 0:00:34]}  Qf6 {[%clk 0:01:14]} 40. Rf1 {[%clk 0:00:33]}  Qh6 {[%clk 0:01:14]} 41. Rf3 {[%clk 0:00:28]}  Bxe3+ {[%clk 0:01:05]} 42. Kf1 {[%clk 0:00:28]}  Bg4 {[%clk 0:00:59]} 43. Qd1 {[%clk 0:00:13]}  Bxf3 {[%clk 0:00:58]} 44. Qxf3 {[%clk 0:00:14]}  Qf4 {[%clk 0:00:58]} 45. dxc5 {[%clk 0:00:11]}  Qxf3+ {[%clk 0:00:53]} 46. Bxf3 {[%clk 0:00:12]}  Bxc5 {[%clk 0:00:54]} 47. Kg2 {[%clk 0:00:12]}  Rd3 {[%clk 0:00:53]} 48. Kxg3 {[%clk 0:00:11]}  Re8 {[%clk 0:00:53]} 49. Kg4 {[%clk 0:00:11]}  f5+ {[%clk 0:00:48]} 50. Kf4 {[%clk 0:00:10]}  Kf6 {[%clk 0:00:47]} 51. Rh2 {[%clk 0:00:10]}  Rd4+ {[%clk 0:00:41]} 52. Kg3 {[%clk 0:00:09]}  Rg8+ {[%clk 0:00:39]} 53. Kh3 {[%clk 0:00:07]}  Rd7 {[%clk 0:00:39]} 54. Bh5 {[%clk 0:00:05]}  Rh7 {[%clk 0:00:40]} 55. Kh4 {[%clk 0:00:05]}  Rg4+ {[%clk 0:00:40]} 56. Kh3 {[%clk 0:00:04]}  Rxh5# {[%clk 0:00:41]} 0-1


[Site "https://www.chess.com"]

[Event "Titled Tuesday Blitz July 25 Early 2023"]
[White "Ahmad, Khagan"]
[Black "Kovalev, Vladislav"]
[WhiteFideId "13431552"]
[BlackFideId "13504398"]
[WhiteElo "2580"]
[BlackElo "2950"]
[Result "0-1"]
[Round "2"]
[TimeControl "180+2"]
[Date "2023.07.25"]
[WhiteClock "0:00:05"]
[BlackClock "0:00:26"]
[Board "22"]

1. e4 {[%clk 0:03:00]}  e5 {[%clk 0:03:00]} 2. Nf3 {[%clk 0:03:00]}  Nc6 {[%clk 0:03:00]} 3. Bb5 {[%clk 0:03:00]}  a6 {[%clk 0:03:01]} 4. Ba4 {[%clk 0:02:59]}  Nf6 {[%clk 0:03:00]} 5. O-O {[%clk 0:02:58]}  Be7 {[%clk 0:03:00]} 6. d4 {[%clk 0:02:48]}  exd4 {[%clk 0:02:53]} 7. Nxd4 {[%clk 0:02:46]}  Nxd4 {[%clk 0:02:38]} 8. Qxd4 {[%clk 0:02:44]}  b5 {[%clk 0:02:38]} 9. e5 {[%clk 0:02:32]}  c5 {[%clk 0:02:26]} 10. Qd3 {[%clk 0:01:41]}  Ng8 {[%clk 0:02:13]} 11. Bb3 {[%clk 0:01:31]}  c4 {[%clk 0:02:12]} 12. Bxc4 {[%clk 0:01:30]}  bxc4 {[%clk 0:02:13]} 13. Qxc4 {[%clk 0:01:30]}  Bb7 {[%clk 0:02:05]} 14. Nc3 {[%clk 0:01:23]}  d5 {[%clk 0:01:39]} 15. Qg4 {[%clk 0:01:13]}  g6 {[%clk 0:01:27]} 16. Be3 {[%clk 0:01:02]}  Qc8 {[%clk 0:01:20]} 17. Qa4+ {[%clk 0:00:48]}  Qc6 {[%clk 0:01:17]} 18. Qd4 {[%clk 0:00:44]}  h5 {[%clk 0:00:52]} 19. Rad1 {[%clk 0:00:27]}  Rd8 {[%clk 0:00:52]} 20. f4 {[%clk 0:00:21]}  Nh6 {[%clk 0:00:49]} 21. e6 {[%clk 0:00:19]}  O-O {[%clk 0:00:38]} 22. f5 {[%clk 0:00:17]}  Nxf5 {[%clk 0:00:32]} 23. Rxf5 {[%clk 0:00:16]}  gxf5 {[%clk 0:00:33]} 24. Rd3 {[%clk 0:00:13]}  Qxe6 {[%clk 0:00:27]} 25. Bf4 {[%clk 0:00:05]}  Qe1# {[%clk 0:00:26]} 0-1


[Site "https://www.chess.com"]

[Event "Titled Tuesday Blitz July 25 Early 2023"]
[White "Al-Tarboush, Ward"]
[Black "Terry, Renato"]
[WhiteFideId "7601450"]
[BlackFideId "3803457"]
[WhiteElo "2578"]
[BlackElo "2947"]
[Result "0-1"]
[Round "2"]
[TimeControl "180+2"]
[Date "2023.07.25"]
[WhiteClock "0:00:02"]
[BlackClock "0:00:05"]
[Board "24"]

1. e4 {[%clk 0:03:00]}  e6 {[%clk 0:03:00]} 2. d4 {[%clk 0:03:00]}  d5 {[%clk 0:03:01]} 3. exd5 {[%clk 0:03:00]}  exd5 {[%clk 0:03:01]} 4. Bd3 {[%clk 0:03:01]}  Nc6 {[%clk 0:03:01]} 5. Nf3 {[%clk 0:03:01]}  Nb4 {[%clk 0:03:01]} 6. Bb5+ {[%clk 0:02:56]}  c6 {[%clk 0:03:01]} 7. Be2 {[%clk 0:02:55]}  a5 {[%clk 0:03:00]} 8. O-O {[%clk 0:02:54]}  Bf5 {[%clk 0:02:58]} 9. Na3 {[%clk 0:02:53]}  Bd6 {[%clk 0:02:54]} 10. Re1 {[%clk 0:02:50]}  Ne7 {[%clk 0:02:54]} 11. Bg5 {[%clk 0:02:47]}  f6 {[%clk 0:02:52]} 12. Bh4 {[%clk 0:02:47]}  O-O {[%clk 0:02:52]} 13. Bg3 {[%clk 0:02:44]}  Bxg3 {[%clk 0:02:50]} 14. hxg3 {[%clk 0:02:45]}  Ng6 {[%clk 0:02:41]} 15. c3 {[%clk 0:02:44]}  Na6 {[%clk 0:02:41]} 16. Qd2 {[%clk 0:02:41]}  Nc7 {[%clk 0:02:23]} 17. Nc2 {[%clk 0:02:41]}  Qd6 {[%clk 0:02:16]} 18. Ne3 {[%clk 0:02:38]}  Be6 {[%clk 0:02:16]} 19. Bd3 {[%clk 0:02:37]}  Ne7 {[%clk 0:02:00]} 20. Re2 {[%clk 0:02:33]}  Qd7 {[%clk 0:01:59]} 21. Rae1 {[%clk 0:02:33]}  Rfe8 {[%clk 0:01:57]} 22. Nh4 {[%clk 0:02:32]}  g6 {[%clk 0:01:52]} 23. f4 {[%clk 0:02:29]}  Bf7 {[%clk 0:01:48]} 24. g4 {[%clk 0:02:21]}  Qd6 {[%clk 0:01:40]} 25. g3 {[%clk 0:02:16]}  Rad8 {[%clk 0:01:37]} 26. Kg2 {[%clk 0:02:11]}  Nc8 {[%clk 0:01:31]} 27. g5 {[%clk 0:02:09]}  fxg5 {[%clk 0:01:22]} 28. fxg5 {[%clk 0:02:10]}  Be6 {[%clk 0:01:23]} 29. Rf2 {[%clk 0:02:04]}  Rf8 {[%clk 0:01:21]} 30. Ref1 {[%clk 0:02:04]}  Rxf2+ {[%clk 0:01:21]} 31. Rxf2 {[%clk 0:02:03]}  Rf8 {[%clk 0:01:17]} 32. Kh2 {[%clk 0:01:37]}  Qe7 {[%clk 0:01:09]} 33. Rxf8+ {[%clk 0:01:35]}  Qxf8 {[%clk 0:01:06]} 34. Neg2 {[%clk 0:01:34]}  Qe7 {[%clk 0:01:00]} 35. Qf4 {[%clk 0:01:25]}  Bf7 {[%clk 0:00:51]} 36. Nf3 {[%clk 0:01:15]}  Nd6 {[%clk 0:00:50]} 37. Qg4 {[%clk 0:00:56]}  Be6 {[%clk 0:00:48]} 38. Qh4 {[%clk 0:00:55]}  Bf5 {[%clk 0:00:41]} 39. Ne5 {[%clk 0:00:41]}  Ne6 {[%clk 0:00:37]} 40. Nf4 {[%clk 0:00:22]}  Qxg5 {[%clk 0:00:26]} 41. Qxg5 {[%clk 0:00:21]}  Nxg5 {[%clk 0:00:26]} 42. Be2 {[%clk 0:00:18]}  Kf8 {[%clk 0:00:20]} 43. g4 {[%clk 0:00:18]}  Bb1 {[%clk 0:00:19]} 44. a3 {[%clk 0:00:18]}  Ke7 {[%clk 0:00:19]} 45. Kg3 {[%clk 0:00:18]}  Nge4+ {[%clk 0:00:19]} 46. Kg2 {[%clk 0:00:17]}  Nd2 {[%clk 0:00:14]} 47. Nfd3 {[%clk 0:00:14]}  N2c4 {[%clk 0:00:10]} 48. Kf3 {[%clk 0:00:12]}  Bxd3 {[%clk 0:00:08]} 49. Nxd3 {[%clk 0:00:12]}  a4 {[%clk 0:00:07]} 50. Kf4 {[%clk 0:00:11]}  Nf7 {[%clk 0:00:07]} 51. g5 {[%clk 0:00:10]}  b5 {[%clk 0:00:06]} 52. Bg4 {[%clk 0:00:09]}  Kd6 {[%clk 0:00:04]} 53. Bc8 {[%clk 0:00:08]}  Ke7 {[%clk 0:00:03]} 54. Bb7 {[%clk 0:00:08]}  Kd7 {[%clk 0:00:02]} 55. Ba6 {[%clk 0:00:03]}  Kc7 {[%clk 0:00:02]} 56. Ne5 {[%clk 0:00:02]}  Nfxe5 {[%clk 0:00:02]} 57. dxe5 {[%clk 0:00:03]}  Nxb2 {[%clk 0:00:02]} 58. e6 {[%clk 0:00:02]}  Nd3+ {[%clk 0:00:03]} 59. Ke3 {[%clk 0:00:02]}  Nc5 {[%clk 0:00:04]} 60. e7 {[%clk 0:00:03]}  Kd7 {[%clk 0:00:04]} 61. Bc8+ {[%clk 0:00:03]}  Kxe7 {[%clk 0:00:04]} 62. Kd4 {[%clk 0:00:03]}  Kd6 {[%clk 0:00:05]} 63. Bg4 {[%clk 0:00:02]}  Ne6+ {[%clk 0:00:05]} 0-1


[Site "https://www.chess.com"]